fUST/lending_fUST_20240714
["ID","MTS","AMOUNT","RATE_DAILY","PERIOD"]
[332102124,1720963365883,1500.0,0.00014999,2]
[332102125,1720963386531,561.91903597,0.00014999,2]
[332102126,1720963436369,845.11491107,0.00014999,2]
[332102127,1720963488155,1010.29185341,0.00014999,2]
[332102128,1720963530147,-686.79211742,0.00016255,2]
[332102129,1720963544308,208.08631229,0.00014999,2]
[332102130,1720963545778,979.94921801,0.00014999,2]
[332102131,1720963555184,215.83191418,0.00014999,2]
[332102132,1720963572038,154.94951165,0.00014999,2]
[332102133,1720963573379,842.57501977,0.00014999,2]
[332102134,1720963631127,-526.36205563,0.00016255,2]
[332102135,1720963631148,-283.73636991,0.00016255,2]
[332102136,1720963634100,-242.62568572,0.00016255,2]
[332102137,1720963634120,-267.01475721,0.00017159,2]
[332102138,1720963634143,-61.72377656,0.0001818,2]
[332102139,1720963636922,-208.08631229,0.0001818,2]
[332102140,1720963641486,-460.83801434,0.00016255,2]
[332102141,1720963643094,-519.11120367,0.00016255,2]
[332102142,1720963643116,-78.22865333,0.00019,2]
[332102143,1720963648104,-119.21506299,0.00019,2]
[332102144,1720963648127,-154.69833824,0.00019165,2]
[332102145,1720963648149,-304.91217661,0.00019165,2]
[332102146,1720963653743,-53.31505966,0.00019165,2]
[332102147,1720963653769,-465.41121539,0.00021096,2]
[332102150,1720963727157,4038.95701504,0.00015,2]
[332102152,1720963743972,-300.0,0.00016254,2]
[332102154,1720963744004,-414.16617244,0.00016255,2]
[332102157,1720963744042,-714.16617244,0.00016255,2]
[332102158,1720963744081,-287.58165962,0.00016255,2]
[332102159,1720963749098,-1278.92968896,0.00016255,2]
[332102160,1720963761100,-39584.27978421,0.00016255,2]
[332102161,1720963761120,-250.0,0.000176,2]
[332102162,1720963761141,-300.0,0.00017879,2]
[332102163,1720963761164,-298.30640096,0.00018898,2]
[332102164,1720963761185,-189.39207171,0.000189,2]
[332102165,1720963761209,-79.23796743,0.00020688,2]
[332102166,1720963764088,-239.149694,0.00020688,2]
[332102167,1720963775962,156.38832837,0.00019165,2]
[332102168,1720963781781,128.61167163,0.00019164,2]
[332102169,1720963829782,250.0,0.00018899,2]
[332102187,1720963831979,-729.94921801,0.00018899,2]
[332102189,1720963831989,-526.36205563,0.00019165,2]
[332102190,1720963831998,-11039.06819247,0.00019703,2]
[332102191,1720963832007,-247.08878461,0.00021096,2]
[332102192,1720963832016,-293.350381,0.00021096,2]
[332102193,1720963832025,-212.970312,0.0002113,2]
[332102194,1720963832034,-250.0,0.0002118,2]
[332102195,1720963832044,-10499.83955288,0.00021272,2]
[332102225,1720963838146,-14400.16044712,0.00021272,2]
[332102227,1720963838158,-232.1681743,0.00021331,2]
[332102229,1720963838168,-163.940331,0.00022052,2]
[332102231,1720963838178,-191.1741989,0.00022304,2]
[332102233,1720963838188,-161.748849,0.00022528,2]
[332102236,1720963838200,-163.940331,0.00022626,2]
[332102238,1720963838211,-10585.95428479,0.00022941,2]
[332102240,1720963838222,-163.940331,0.00023201,2]
[332102242,1720963838232,-156.38832837,0.00023229,2]
[332102244,1720963838242,-12933.23830837,0.00023453,2]
[332102246,1720963838251,-189.39207171,0.000239,2]
[332102248,1720963838260,-351.6282245,0.00024378,2]
[332102250,1720963838270,-263.8638451,0.00024557,2]
[332102252,1720963838279,-19476.193911,0.00024647,3]
[332102254,1720963838290,-502.39202574,0.00024657,2]
[332102256,1720963838301,-500.0,0.00024657,2]
[332102258,1720963838312,-500.0,0.00024657,2]
[332102260,1720963838322,-500.0,0.00024657,2]
[332102263,1720963838333,-324.41501748,0.00024657,2]
[332102265,1720963838342,-500.0,0.00024657,2]
[332102267,1720963838352,-500.0,0.00024657,2]
[332102269,1720963838361,-500.0,0.00024657,2]
[332102271,1720963838371,-500.0,0.00024657,2]
[332102273,1720963838380,-500.0,0.00024657,2]
[332102275,1720963838390,-787.2,0.00024657,2]
[332102277,1720963838399,-502.77136037,0.00024657,2]
[332102279,1720963838408,-500.0,0.00024657,2]
[332102281,1720963838418,-500.0,0.00024657,2]
[332102283,1720963838427,-541.59233963,0.00024657,2]
[332102285,1720963838437,-508.12091007,0.00024657,2]
[332102287,1720963838447,-500.0,0.00024657,2]
[332102289,1720963838457,-502.45806969,0.00024657,2]
[332102291,1720963838467,-500.0,0.00024657,2]
[332102293,1720963838476,-551.44782475,0.00024657,2]
[332102295,1720963838485,-186.32044497,0.00024657,2]
[332102297,1720963838495,-500.0,0.00024657,2]
[332102299,1720963838504,-500.0,0.00024657,2]
[332102301,1720963838514,-526.47357214,0.00024657,2]
[332102303,1720963838524,-500.0,0.00024657,2]
[332102304,1720963838533,-500.0,0.00024657,2]
[332102305,1720963838543,-500.0,0.00024657,2]
[332102306,1720963838553,-500.0,0.00024657,2]
[332102308,1720963838562,-500.0,0.00024657,2]
[332102310,1720963838573,-500.0,0.00024657,2]
[332102312,1720963838582,-500.0,0.00024657,2]
[332102314,1720963838592,-500.0,0.00024657,2]
[332102315,1720963838601,-500.0,0.00024657,2]
[332102316,1720963838610,-500.0,0.00024657,2]
[332102317,1720963838620,-500.0,0.00024657,2]
[332102318,1720963838630,-500.0,0.00024657,2]
[332102320,1720963838639,-504.64272653,0.00024657,2]
[332102322,1720963838649,-500.0,0.00024657,2]
[332102323,1720963838659,-500.0,0.00024657,2]
[332102324,1720963838668,-500.0,0.00024657,2]
[332102326,1720963838678,-500.0,0.00024657,2]
[332102328,1720963838688,-500.0,0.00024657,2]
[332102330,1720963838698,-500.0,0.00024657,2]
[332102332,1720963838708,-524.10463166,0.00024657,2]
[332102334,1720963838718,-500.0,0.00024657,2]
[332102336,1720963838727,-500.0,0.00024657,2]
[332102338,1720963838736,-500.0,0.00024657,2]
[332102339,1720963838752,-500.0,0.00024657,2]
[332102341,1720963838762,-500.0,0.00024657,2]
[332102343,1720963838771,-500.0,0.00024657,2]
[332102346,1720963838781,-500.0,0.00024657,2]
[332102347,1720963838793,-500.0,0.00024657,2]
[332102349,1720963838802,-500.0,0.00024657,2]
[332102350,1720963838814,-500.0,0.00024657,2]
[332102351,1720963838825,-500.0,0.00024657,2]
[332102352,1720963838836,-500.0,0.00024657,2]
[332102354,1720963838845,-279.3196256,0.00024657,2]
[332102356,1720963838855,-500.0,0.00024657,2]
[332102358,1720963838865,-500.0,0.00024657,2]
[332102360,1720963838874,-500.0,0.00024657,2]
[332102362,1720963838884,-500.0,0.00024657,2]
[332102364,1720963838893,-500.0,0.00024657,2]
[332102366,1720963838903,-500.0,0.00024657,2]
[332102368,1720963838912,-500.0,0.00024657,2]
[332102370,1720963838922,-500.0,0.00024657,2]
[332102371,1720963838932,-500.0,0.00024657,2]
[332102372,1720963838941,-500.0,0.00024657,2]
[332102374,1720963838950,-500.0,0.00024657,2]
[332102376,1720963838961,-500.0,0.00024657,2]
[332102378,1720963838971,-500.0,0.00024657,2]
[332102380,1720963838980,-500.0,0.00024657,2]
[332102382,1720963838990,-500.0,0.00024657,2]
[332102384,1720963838999,-500.0,0.00024657,2]
[332102385,1720963839008,-500.0,0.00024657,2]
[332102387,1720963839018,-500.0,0.00024657,2]
[332102389,1720963839028,-500.0,0.00024657,2]
[332102391,1720963839038,-500.0,0.00024657,2]
[332102393,1720963839047,-500.0,0.00024657,2]
[332102395,1720963839057,-646.42797551,0.00024657,2]
[332102397,1720963839067,-500.0,0.00024657,2]
[332102399,1720963839077,-500.0,0.00024657,2]
[332102401,1720963839086,-500.0,0.00024657,2]
[332102403,1720963839095,-500.0,0.00024657,2]
[332102405,1720963839105,-500.0,0.00024657,2]
[332102407,1720963839114,-500.0,0.00024657,2]
[332102409,1720963839124,-500.0,0.00024657,2]
[332102411,1720963839133,-500.0,0.00024657,2]
[332102413,1720963839143,-500.0,0.00024657,2]
[332102415,1720963839153,-500.0,0.00024657,2]
[332102417,1720963839162,-500.0,0.00024657,2]
[332102419,1720963839172,-500.0,0.00024657,2]
[332102421,1720963839181,-500.0,0.00024657,2]
[332102423,1720963839191,-503.21029489,0.00024657,2]
[332102425,1720963839201,-500.0,0.00024657,2]
[332102427,1720963839210,-500.0,0.00024657,2]
[332102429,1720963839220,-500.0,0.00024657,2]
[332102431,1720963839230,-500.0,0.00024657,2]
[332102434,1720963839240,-500.0,0.00024657,2]
[332102436,1720963839249,-500.0,0.00024657,2]
[332102438,1720963839259,-500.0,0.00024657,2]
[332102439,1720963839268,-500.0,0.00024657,2]
[332102441,1720963839277,-500.0,0.00024657,2]
[332102443,1720963839286,-500.0,0.00024657,2]
[332102445,1720963839297,-500.0,0.00024657,2]
[332102448,1720963839307,-500.0,0.00024657,4]
[332102450,1720963839317,-582.51563008,0.00024657,2]
[332102452,1720963839326,-500.0,0.00024657,2]
[332102454,1720963839338,-500.0,0.00024657,2]
[332102455,1720963839348,-500.0,0.00024657,2]
[332102458,1720963839359,-500.0,0.00024657,2]
[332102459,1720963839369,-500.0,0.00024657,2]
[332102461,1720963839378,-500.0,0.00024657,2]
[332102463,1720963839389,-500.0,0.00024657,2]
[332102464,1720963839399,-500.0,0.00024657,2]
[332102465,1720963839408,-500.0,0.00024657,2]
[332102466,1720963839418,-325.93657108,0.00024657,2]
[332102467,1720963839428,-500.0,0.00024657,2]
[332102468,1720963839437,-500.0,0.00024657,2]
[332102469,1720963839446,-500.0,0.00024657,2]
[332102470,1720963839456,-500.0,0.00024657,2]
[332102471,1720963839465,-500.0,0.00024657,2]
[332102472,1720963839475,-500.0,0.00024657,2]
[332102474,1720963839484,-500.0,0.00024657,2]
[332102476,1720963839494,-500.0,0.00024657,2]
[332102477,1720963839503,-500.0,0.00024657,2]
[332102480,1720963839513,-500.0,0.00024657,2]
[332102481,1720963839522,-500.0,0.00024657,2]
[332102483,1720963839531,-500.0,0.00024657,2]
[332102485,1720963839540,-500.0,0.00024657,2]
[332102488,1720963839550,-500.0,0.00024657,2]
[332102491,1720963839561,-500.0,0.00024657,2]
[332102492,1720963839570,-500.0,0.00024657,2]
[332102495,1720963839580,-500.0,0.00024657,2]
[332102497,1720963839589,-500.0,0.00024657,2]
[332102499,1720963839599,-556.55934214,0.00024657,2]
[332102502,1720963839608,-500.0,0.00024657,2]
[332102505,1720963839617,-500.0,0.00024657,2]
[332102507,1720963839626,-502.13573972,0.00024657,2]
[332102509,1720963839636,-500.0,0.00024657,2]
[332102511,1720963839646,-500.0,0.00024657,2]
[332102512,1720963839655,-636.12,0.00024657,2]
[332102514,1720963839665,-500.0,0.00024657,2]
[332102515,1720963839674,-500.0,0.00024657,2]
[332102516,1720963839684,-500.0,0.00024657,2]
[332102517,1720963839694,-500.0,0.00024657,2]
[332102518,1720963839703,-419.61134421,0.00024657,2]
[332102519,1720963839713,-500.0,0.00024657,2]
[332102520,1720963839723,-4192.72,0.00024657,2]
[332102521,1720963839733,-500.0,0.00024657,2]
[332102522,1720963839747,-500.0,0.00024657,2]
[332102523,1720963839757,-500.0,0.00024657,2]
[332102524,1720963839766,-508.43858548,0.00024657,2]
[332102526,1720963839775,-500.0,0.00024657,2]
[332102528,1720963839787,-500.0,0.00024657,2]
[332102530,1720963839797,-500.0,0.00024657,2]
[332102532,1720963839807,-500.0,0.00024657,2]
[332102534,1720963839819,-500.0,0.00024657,2]
[332102536,1720963839828,-500.0,0.00024657,2]
[332102538,1720963839838,-500.0,0.00024657,2]
[332102540,1720963839847,-980.75,0.00024657,2]
[332102542,1720963839857,-636.7074349,0.00024657,2]
[332102544,1720963839867,-505.67942803,0.00024657,2]
[332102545,1720963839876,-500.0,0.00024657,2]
[332102548,1720963839886,-500.0,0.00024657,2]
[332102550,1720963839897,-500.0,0.00024657,2]
[332102552,1720963839906,-500.0,0.00024657,2]
[332102554,1720963839916,-500.0,0.00024657,2]
[332102555,1720963839926,-500.0,0.00024657,2]
[332102557,1720963839936,-500.0,0.00024657,2]
[332102559,1720963839945,-503.40248263,0.00024657,2]
[332102561,1720963839955,-506.92586096,0.00024657,2]
[332102564,1720963839966,-500.0,0.00024657,2]
[332102566,1720963839976,-500.0,0.00024657,2]
[332102568,1720963839985,-500.0,0.00024657,2]
[332102570,1720963839995,-500.0,0.00024657,2]
[332102572,1720963840005,-500.0,0.00024657,2]
[332102574,1720963840014,-500.0,0.00024657,2]
[332102576,1720963840023,-500.0,0.00024657,2]
[332102578,1720963840033,-500.0,0.00024657,2]
[332102580,1720963840042,-500.0,0.00024657,2]
[332102582,1720963840052,-500.0,0.00024657,2]
[332102584,1720963840064,-500.0,0.00024657,2]
[332102586,1720963840074,-500.0,0.00024657,2]
[332102588,1720963840083,-500.0,0.00024657,2]
[332102590,1720963840093,-500.0,0.00024657,2]
[332102592,1720963840103,-500.0,0.00024657,2]
[332102594,1720963840114,-500.0,0.00024657,2]
[332102596,1720963840124,-500.0,0.00024657,2]
[332102598,1720963840135,-500.0,0.00024657,2]
[332102600,1720963840145,-500.0,0.00024657,2]
[332102602,1720963840155,-500.0,0.00024657,2]
[332102604,1720963840164,-500.0,0.00024657,2]
[332102606,1720963840174,-7306.18,0.00024657,2]
[332102608,1720963840183,-500.0,0.00024657,2]
[332102610,1720963840195,-500.0,0.00024657,2]
[332102613,1720963840206,-500.0,0.00024657,2]
[332102615,1720963840217,-500.0,0.00024657,2]
[332102617,1720963840226,-500.0,0.00024657,2]
[332102619,1720963840235,-500.0,0.00024657,2]
[332102621,1720963840246,-364.16210115,0.00024657,2]
[332102623,1720963840255,-500.0,0.00024657,2]
[332102625,1720963840265,-500.0,0.00024657,2]
[332102627,1720963840274,-500.0,0.00024657,2]
[332102629,1720963840283,-500.0,0.00024657,2]
[332102631,1720963840293,-500.0,0.00024657,2]
[332102633,1720963840302,-500.0,0.00024657,2]
[332102635,1720963840314,-500.0,0.00024657,2]
[332102637,1720963840324,-500.0,0.00024657,2]
[332102639,1720963840333,-500.0,0.00024657,2]
[332102641,1720963840342,-500.0,0.00024657,2]
[332102643,1720963840352,-500.0,0.00024657,2]
[332102645,1720963840361,-500.0,0.00024657,2]
[332102647,1720963840370,-500.0,0.00024657,2]
[332102649,1720963840380,-627.08065071,0.00024657,2]
[332102651,1720963840390,-500.0,0.00024657,2]
[332102653,1720963840399,-500.0,0.00024657,2]
[332102655,1720963840409,-500.0,0.00024657,2]
[332102657,1720963840418,-1500.0,0.00024657,2]
[332102668,1720963840427,-500.0,0.00024657,2]
[332102670,1720963840520,-500.0,0.00024657,2]
[332102672,1720963840531,-1264.84,0.00024657,2]
[332102674,1720963840541,-638.82,0.00024657,2]
[332102676,1720963840551,-453.26235459,0.00024657,2]
[332102678,1720963840563,-500.0,0.00024657,2]
[332102680,1720963840573,-500.0,0.00024657,2]
[332102682,1720963840582,-500.0,0.00024657,2]
[332102684,1720963840592,-500.0,0.00024657,2]
[332102686,1720963840602,-500.0,0.00024657,2]
[332102688,1720963840613,-500.0,0.00024657,2]
[332102690,1720963840622,-500.0,0.00024657,2]
[332102692,1720963840633,-500.0,0.00024657,2]
[332102694,1720963840642,-500.0,0.00024657,2]
[332102696,1720963840652,-500.0,0.00024657,2]
[332102698,1720963840661,-534.03580001,0.00024657,2]
[332102700,1720963840672,-500.0,0.00024657,2]
[332102702,1720963840683,-427.30514417,0.00024657,2]
[332104066,1720964193015,4711.13030053,0.00014999,2]
[332104069,1720964233302,979.94921801,0.00014999,2]
[332104071,1720964291674,526.36205563,0.00014999,2]
[332104072,1720964373393,921.55539113,0.00014999,2]
[332104073,1720964380093,2121.20832974,0.00014999,2]
[332104074,1720964452911,2256.78960762,0.00014999,2]
[332104075,1720964457164,526.36205563,0.00014999,2]
[332104076,1720964482825,525.89628869,0.00014999,2]
[332104078,1720964539621,936.31532871,0.00014999,2]
[332104079,1720964543652,2711.11436038,0.00014999,2]
[332104080,1720964627665,526.36205563,0.00014999,2]
[332104081,1720964656775,1604.39902116,0.00014999,2]
[332104082,1720964664852,524.74740785,0.00014999,2]
[332104083,1720964665108,1491.29218622,0.00014999,2]
[332104084,1720964713185,995.38244652,0.00014999,2]
[332104085,1720964723582,936.31532871,0.00014999,2]
[332104086,1720964747170,-762.0,0.0001625,2]
[332104087,1720964747191,-54.25257096,0.00016255,2]
[332104088,1720964779882,315.03864118,0.00014999,2]
[332104089,1720964798697,526.36205563,0.00014999,2]
[332104090,1720964825103,-719.45241765,0.00018,2]
[332104091,1720964827116,-320.0967825,0.00018,2]
[332104092,1720964833137,-456.75949662,0.00016255,2]
[332104093,1720964833162,-211.51299865,0.00016255,2]
[332104094,1720964833184,-251.96712755,0.00018,2]
[332104095,1720964836420,-150.37689631,0.00018,2]
[332104096,1720964836444,-297.06682001,0.0001818,2]
[332104097,1720964837111,-374.50995342,0.0001818,2]
[332104098,1720964837134,-601.1953179,0.00018899,2]
[332104099,1720964837157,-445.61760685,0.00018899,2]
[332104100,1720964837186,-99.56378187,0.00018899,2]
[332104101,1720964837207,-154.54409492,0.0002,2]
[332104102,1720964837229,-293.73911192,0.0002,2]
[332104103,1720964837250,-169.72486,0.00020578,2]
[332104104,1720964837272,-175.5727653,0.00020659,2]
[332104105,1720964837294,-212.9703128,0.00020693,2]
[332104106,1720964837315,-471.317138,0.00021096,2]
[332104107,1720964837349,-238.0,0.00021847,2]
[332104108,1720964837376,-300.0,0.00021847,2]
[332104109,1720964837400,-159.801941,0.00021848,2]
[332104110,1720964837423,-159.801941,0.00021943,2]
[332104111,1720964837446,-159.801941,0.00022038,2]
[332104112,1720964837469,-159.801941,0.00022133,2]
[332104113,1720964837491,-159.801941,0.00022228,2]
[332104114,1720964837514,-159.801941,0.00022323,2]
[332104115,1720964837537,-159.801941,0.00022418,2]
[332104116,1720964837560,-93.39308291,0.0002243,2]
[332104117,1720964848115,-526.36205563,0.0001818,2]
[332104118,1720964848137,-125.6765229,0.0001818,2]
[332104120,1720964963091,-163.13069057,0.000189,2]
[332104121,1720964963118,-76.01900343,0.00021095,2]
[332105303,1720965043344,-283.43817222,0.00021095,2]
[332105305,1720965043353,-362.90129189,0.00021096,2]
[332105350,1720965043702,-266.74114811,0.00021096,2]
[332105352,1720965043712,-820.30151478,0.00021691,2]
[332105998,1720965131845,165.145537,0.00019165,2]
[332105999,1720965214950,234.91636439,0.00016255,2]
[332106003,1720965301695,201.00821583,0.00016255,2]
[332106016,1720965695072,64.07541978,0.00016255,2]
[332106017,1720965695104,92.31290859,0.00016255,2]
[332106019,1720965837793,154.7599248,0.00016255,2]
[332106021,1720965890094,76.16688684,0.00016255,2]
[332106022,1720965904218,-80.22144153,0.00016255,2]
[332106023,1720965911667,526.36205563,0.00016255,2]
[332106024,1720965922675,526.36205563,0.00016255,2]
[332106028,1720965991643,309.21644248,0.00016255,2]
[332106031,1720966036650,-195.30405646,0.00018,2]
[332106032,1720966036672,-58.76548836,0.00018899,2]
[332106033,1720966037135,-245.87543214,0.00018899,2]
[332106034,1720966037156,-403.6290569,0.00018899,2]
[332106035,1720966037176,-138.48819285,0.00018899,2]
[332106036,1720966040107,-23.65334959,0.00018899,2]
[332106037,1720966040128,-187.7887475,0.00018899,2]
[332106038,1720966040150,-38.55790291,0.00018899,2]
[332106039,1720966041125,-176.90299254,0.00018899,2]
[332106040,1720966041148,-281.23363357,0.00019165,2]
[332106041,1720966041169,-70.34362941,0.00019591,2]
[332106042,1720966047100,-79.65637059,0.00019591,2]
[332106043,1720966047122,-267.12311338,0.00019703,2]
[332106044,1720966047145,-247.0119414,0.0002,2]
[332106045,1720966047167,-226.03910212,0.0002,2]
[332106046,1720966050081,-67.7000098,0.0002,2]
[332106047,1720966050103,-151.29618446,0.0002,2]
[332106048,1720966050125,-270.15349974,0.0002,2]
[332106049,1720966050153,-189.10340676,0.0002,2]
[332106050,1720966050175,-167.654166,0.0002031,2]
[332106051,1720966050197,-167.654166,0.00020406,2]
[332106052,1720966050220,-333.4228489,0.00020482,2]
[332106053,1720966050244,-167.654166,0.00020503,2]
[332106054,1720966050266,-154.54409492,0.00020545,2]
[332106055,1720966050289,-167.654166,0.00020599,2]
[332106056,1720966050312,-167.654166,0.00020695,2]
[332106057,1720966050337,-167.654166,0.00020791,2]
[332106058,1720966050365,-167.654166,0.00020887,2]
[332106059,1720966050388,-167.654166,0.00020984,2]
[332106060,1720966050411,-167.654166,0.0002108,2]
[332106061,1720966050434,-285.0,0.00021095,2]
[332106062,1720966050460,-447.751281,0.00021096,2]
[332106063,1720966050483,-598.160318,0.00021096,2]
[332106064,1720966050504,-2739.65995341,0.00021175,5]
[332106065,1720966050528,-3703.8366084,0.00021175,2]
[332106066,1720966052091,-1348.28651988,0.00021175,2]
[332106073,1720966160086,-150.0,0.00019075,2]
[332106074,1720966160108,-41.14573132,0.00021076,2]
[332106128,1720966238380,-475.06854908,0.00021076,2]
[332106129,1720966238390,-225.94652212,0.00021076,2]
[332106130,1720966238400,-167.654166,0.00021176,2]
[332106131,1720966238409,-167.654166,0.00021272,2]
[332106133,1720966238420,-167.654166,0.00021369,2]
[332106134,1720966238429,-1066.54542754,0.00021917,2]
[332106136,1720966238439,-1424.60469054,0.00021917,2]
[332106137,1720966238448,-1369.8299767,0.00022124,5]
[332106139,1720966238458,-24900.0,0.00022124,2]
[332106141,1720966238468,-2670.02522048,0.00022148,2]
[332106143,1720966238478,-364.18737546,0.00022164,2]
[332106145,1720966238488,-161.748849,0.00022243,2]
[332106147,1720966238497,-9363.29574699,0.00022941,2]
[332106149,1720966238511,-811.42567923,0.00023528,2]
[332106151,1720966238521,-2138.52341476,0.00024,2]
[332106154,1720966238531,-150.0,0.00024075,2]
[332106155,1720966238541,-300.0,0.0002428,2]
[332106157,1720966238551,-2001.92285393,0.000244,7]
[332106159,1720966238560,-1016.68302254,0.00024481,2]
[332106161,1720966238570,-285.0,0.00024481,7]
[332106164,1720966238581,-211.09107608,0.00024557,2]
[332106166,1720966238591,-153.0,0.00024575,2]
[332106168,1720966238601,-153.0,0.00024575,2]
[332106170,1720966238610,-153.0,0.00024575,2]
[332106172,1720966238620,-153.0,0.00024575,2]
[332106174,1720966238630,-153.0,0.00024575,2]
[332106176,1720966238639,-309.9059119,0.00024575,2]
[332106177,1720966238648,-150.112233,0.000246,2]
[332106179,1720966238658,-38627.7845903,0.00024647,3]
[332106181,1720966238670,-726.5695421,0.00024657,2]
[332106184,1720966238680,-151.0,0.00024657,7]
[332106186,1720966238689,-151.0,0.00024657,7]
[332106188,1720966238699,-151.0,0.00024657,7]
[332106189,1720966238709,-151.0,0.00024657,7]
[332106191,1720966238718,-500.0,0.00024657,2]
[332106194,1720966238728,-500.0,0.00024657,2]
[332106195,1720966238738,-500.0,0.00024657,2]
[332106197,1720966238749,-500.0,0.00024657,2]
[332106199,1720966238759,-152.11310169,0.00024657,2]
[332106201,1720966238769,-500.0,0.00024657,2]
[332106202,1720966238778,-501.19495669,0.00024657,2]
[332106204,1720966238787,-500.0,0.00024657,2]
[332106206,1720966238796,-500.0,0.00024657,2]
[332106208,1720966238806,-500.0,0.00024657,2]
[332106209,1720966238817,-500.0,0.00024657,2]
[332106210,1720966238826,-151.0,0.00024657,7]
[332106211,1720966238836,-151.0,0.00024657,7]
[332106212,1720966238845,-151.0,0.00024657,7]
[332106213,1720966238856,-153.552436,0.00024657,7]
[332106214,1720966238865,-151.0,0.00024657,7]
[332106215,1720966238875,-500.0,0.00024657,2]
[332106216,1720966238885,-295.226594,0.00024657,7]
[332106217,1720966238894,-500.0,0.00024657,2]
[332106218,1720966238905,-502.13573972,0.00024657,2]
[332106219,1720966238914,-500.0,0.00024657,2]
[332106220,1720966238924,-500.0,0.00024657,2]
[332106221,1720966238933,-500.0,0.00024657,2]
[332106222,1720966238942,-500.0,0.00024657,2]
[332106223,1720966238953,-500.0,0.00024657,2]
[332106224,1720966238962,-500.0,0.00024657,2]
[332106225,1720966238974,-500.0,0.00024657,2]
[332106226,1720966238983,-500.0,0.00024657,2]
[332106227,1720966238993,-500.0,0.00024657,2]
[332106228,1720966239003,-500.0,0.00024657,2]
[332106229,1720966239013,-500.0,0.00024657,2]
[332106230,1720966239023,-500.0,0.00024657,2]
[332106231,1720966239032,-511.76474404,0.00024657,2]
[332106232,1720966239042,-500.0,0.00024657,2]
[332106233,1720966239052,-500.0,0.00024657,2]
[332106234,1720966239062,-500.0,0.00024657,2]
[332106235,1720966239072,-517.32618293,0.00024657,2]
[332106236,1720966239081,-500.0,0.00024657,2]
[332106237,1720966239091,-575.91413923,0.00024657,2]
[332106238,1720966239100,-500.0,0.00024657,2]
[332106239,1720966239111,-500.0,0.00024657,2]
[332106240,1720966239120,-500.0,0.00024657,2]
[332106241,1720966239129,-500.0,0.00024657,2]
[332106242,1720966239139,-503.22354975,0.00024657,2]
[332106243,1720966239149,-500.0,0.00024657,2]
[332106244,1720966239158,-500.0,0.00024657,2]
[332106245,1720966239169,-636.7074349,0.00024657,2]
[332106246,1720966239179,-500.0,0.00024657,2]
[332106247,1720966239188,-517.54873625,0.00024657,2]
[332106248,1720966239198,-500.0,0.00024657,2]
[332106249,1720966239208,-500.0,0.00024657,2]
[332106250,1720966239218,-505.67942803,0.00024657,2]
[332106251,1720966239228,-500.0,0.00024657,2]
[332106252,1720966239330,-500.0,0.00024657,2]
[332106253,1720966239341,-500.0,0.00024657,2]
[332106254,1720966239350,-500.0,0.00024657,2]
[332106255,1720966239360,-500.0,0.00024657,2]
[332106256,1720966239370,-500.0,0.00024657,2]
[332106257,1720966239378,-524.07621317,0.00024657,2]
[332106258,1720966239387,-500.0,0.00024657,2]
[332106259,1720966239398,-500.0,0.00024657,2]
[332106260,1720966239407,-500.0,0.00024657,2]
[332106261,1720966239417,-500.0,0.00024657,2]
[332106262,1720966239426,-500.0,0.00024657,2]